fUST/lending_fUST_20250810
["ID","MTS","AMOUNT","RATE_DAILY","PERIOD"]
[378338923,1754832634684,-460.0,0.00019997,2]
[378338924,1754832634694,-460.0,0.00019997,2]
[378338925,1754832634703,-461.85260257,0.00019997,2]
[378338926,1754832634712,-460.0,0.00019997,2]
[378338927,1754832634722,-156.90528425,0.00019997,2]
[378338928,1754832634731,-460.0,0.00019997,2]
[378338929,1754832634741,-460.0,0.00019997,2]
[378338930,1754832634750,-460.0,0.00019997,2]
[378338931,1754832634761,-460.0,0.00019997,2]
[378338932,1754832634771,-460.0,0.00019997,2]
[378338933,1754832634781,-460.0,0.00019997,2]
[378338934,1754832634795,-473.66475752,0.00019997,2]
[378338935,1754832634804,-460.0,0.00019997,2]
[378338936,1754832634814,-460.0,0.00019997,2]
[378338937,1754832634824,-460.0,0.00019997,2]
[378338938,1754832634834,-460.0,0.00019997,2]
[378338939,1754832634844,-460.0,0.00019997,2]
[378338940,1754832634854,-460.0,0.00019997,2]
[378338941,1754832634863,-475.03,0.00019997,2]
[378338942,1754832634875,-460.0,0.00019997,2]
[378338943,1754832634884,-460.0,0.00019997,2]
[378338944,1754832634894,-460.0,0.00019997,2]
[378338945,1754832634903,-740.87,0.00019997,2]
[378338946,1754832634913,-461.25330587,0.00019997,2]
[378338947,1754832634922,-789.24,0.00019997,2]
[378338948,1754832634932,-460.0,0.00019997,2]
[378338949,1754832634941,-460.0,0.00019997,2]
[378338950,1754832634950,-460.0,0.00019997,2]
[378338951,1754832634960,-460.0,0.00019997,2]
[378338952,1754832634970,-460.0,0.00019997,2]
[378338953,1754832634979,-463.62917884,0.00019997,2]
[378338954,1754832634989,-220.74155376,0.00019997,2]
[378338955,1754832634999,-3027.39,0.00019997,2]
[378338956,1754832635008,-460.0,0.00019997,2]
[378338957,1754832635017,-460.0,0.00019997,2]
[378338958,1754832635027,-172.41379316,0.00019997,2]
[378338959,1754832635036,-279.56886115,0.00019997,2]
[378338960,1754832635045,-460.0,0.00019997,2]
[378338961,1754832635054,-460.0,0.00019997,2]
[378338962,1754832635064,-499.09,0.00019997,2]
[378338963,1754832635073,-460.0,0.00019997,2]
[378338964,1754832635083,-463.10984365,0.00019997,2]
[378338965,1754832635092,-460.0,0.00019997,2]
[378338966,1754832635102,-997.24,0.00019997,2]
[378338967,1754832635111,-460.0,0.00019997,2]
[378338968,1754832635122,-460.0,0.00019997,2]
[378338969,1754832635132,-916.43,0.00019997,2]
[378338970,1754832635141,-988.15,0.00019997,2]
[378338971,1754832635151,-500.0,0.00019997,2]
[378338972,1754832635161,-500.0,0.00019997,2]
[378338973,1754832635172,-460.0,0.00019997,2]
[378338974,1754832635181,-905.07,0.00019997,2]
[378338975,1754832635190,-150.0,0.0002,7]
[378338976,1754832635200,-23000.0,0.0002,2]
[378338977,1754832635209,-23294.71294276,0.0002,2]
[378338981,1754832637814,-460.0,0.00019995,2]
[378338982,1754832637824,-43190.10546922,0.0002,2]
[378338983,1754832637834,-13570.34695814,0.00020072,2]
[378338984,1754832637846,-1429.65304187,0.00020072,2]
[378338985,1754832637855,-500.0,0.00020157,2]
[378338986,1754832637865,-1473.61176076,0.00020169,2]
[378338987,1754832637875,-500.0,0.00020172,2]
[378338988,1754832637885,-500.0,0.00020172,2]
[378338989,1754832637894,-215.44987349,0.00020172,3]
[378338990,1754832637904,-312.16666667,0.00020172,3]
[378338991,1754832637913,-12668.57659669,0.00020172,3]
[378338992,1754832637923,-461.62346162,0.00020172,3]
[378338993,1754832637932,-527.86640923,0.00020172,3]
[378338994,1754832637941,-408.853106,0.00020187,2]
[378338995,1754832637951,-460.0,0.00020263,2]
[378338996,1754832637959,-460.0,0.00020263,2]
[378338997,1754832637969,-460.0,0.00020263,2]
[378338998,1754832637978,-460.0,0.00020268,2]
[378338999,1754832637988,-565.87,0.00020268,2]
[378339000,1754832637997,-1216.13,0.00020268,2]
[378339001,1754832638006,-1151.49,0.00020268,2]
[378339002,1754832638015,-291.01,0.00020268,2]
[378339003,1754832638025,-460.0,0.00020268,2]
[378339004,1754832638034,-460.0,0.00020268,2]
[378339005,1754832638044,-460.0,0.00020268,2]
[378339006,1754832638053,-181.3561015,0.00020269,2]
[378339007,1754832638063,-463.26221876,0.00020269,2]
[378339008,1754832638072,-460.0,0.00020269,2]
[378339009,1754832638082,-460.0,0.00020269,2]
[378339010,1754832638091,-460.0,0.00020269,2]
[378339011,1754832638101,-460.0,0.00020269,2]
[378339012,1754832638110,-460.0,0.00020269,2]
[378339013,1754832638120,-460.0,0.00020269,2]
[378339014,1754832638129,-460.0,0.00020269,2]
[378339015,1754832638138,-460.0,0.00020269,2]
[378339016,1754832638148,-1798.04,0.00020269,2]
[378339017,1754832638158,-460.0,0.00020269,2]
[378339018,1754832638167,-460.0,0.00020269,2]
[378339019,1754832638176,-1200.02,0.00020269,2]
[378339020,1754832638185,-460.0,0.00020269,2]
[378339021,1754832638196,-460.0,0.00020269,2]
[378339022,1754832638206,-460.0,0.00020269,2]
[378339023,1754832638215,-460.0,0.00020269,2]
[378339024,1754832638225,-491.06,0.00020269,2]
[378339025,1754832638235,-460.0,0.00020269,2]
[378339026,1754832638244,-177.76400115,0.0002027,2]
[378339027,1754832638253,-460.0,0.0002027,2]
[378339028,1754832638263,-460.0,0.0002027,2]
[378339029,1754832638272,-231.67655216,0.0002027,2]
[378339030,1754832638282,-306.76206485,0.0002027,2]
[378339031,1754832638291,-460.0,0.0002027,2]
[378339032,1754832638300,-460.0,0.0002027,2]
[378339033,1754832638309,-460.0,0.0002027,2]
[378339034,1754832638319,-467.1671852,0.0002027,2]
[378339035,1754832638329,-354.14,0.0002027,2]
[378339036,1754832638338,-460.0,0.0002027,2]
[378339037,1754832638348,-460.0,0.0002027,2]
[378339038,1754832638357,-460.0,0.0002027,2]
[378339040,1754832638366,-460.0,0.0002027,2]
[378339042,1754832638376,-299.44404413,0.0002027,2]
[378339044,1754832638385,-460.0,0.0002027,2]
[378339046,1754832638394,-460.0,0.0002027,2]
[378339048,1754832638404,-460.0,0.0002027,2]
[378339050,1754832638414,-460.0,0.0002027,2]
[378339052,1754832638423,-460.0,0.0002027,2]
[378339054,1754832638432,-465.95942555,0.0002027,2]
[378339056,1754832638441,-971.99,0.0002027,2]
[378339058,1754832638451,-460.0,0.0002027,2]
[378339060,1754832638460,-267.678285,0.0002027,2]
[378339063,1754832639107,-192.321715,0.0002027,2]
[378339064,1754832639117,-460.0,0.0002027,2]
[378339065,1754832639126,-460.0,0.0002027,2]
[378339066,1754832639135,-460.0,0.0002027,2]
[378339067,1754832639145,-460.0,0.0002027,2]
[378339068,1754832639154,-460.0,0.0002027,2]
[378339069,1754832639163,-460.0,0.0002027,2]
[378339070,1754832639172,-315.93738094,0.0002027,2]
[378339071,1754832639182,-460.0,0.0002027,2]
[378339072,1754832639192,-460.0,0.0002027,2]
[378339073,1754832639201,-460.0,0.0002027,2]
[378339074,1754832639210,-460.0,0.0002027,2]
[378339075,1754832639220,-460.0,0.0002027,2]
[378339076,1754832639230,-460.0,0.0002027,2]
[378339077,1754832639239,-460.0,0.0002027,2]
[378339078,1754832639249,-460.0,0.0002027,2]
[378339079,1754832639258,-460.0,0.0002027,2]
[378339080,1754832639268,-460.0,0.0002027,2]
[378339081,1754832639278,-460.0,0.0002027,2]
[378339082,1754832639287,-460.0,0.0002027,2]
[378339083,1754832639298,-460.0,0.0002027,2]
[378339084,1754832639307,-460.0,0.0002027,2]
[378339085,1754832639316,-462.81789658,0.0002027,2]
[378339086,1754832639326,-460.0,0.0002027,2]
[378339087,1754832639336,-460.0,0.0002027,2]
[378339088,1754832639346,-500.0,0.0002027,2]
[378339089,1754832639355,-500.0,0.0002027,2]
[378339090,1754832639364,-460.0,0.0002027,2]
[378339091,1754832639374,-500.0,0.0002027,2]
[378339092,1754832639383,-460.0,0.0002027,2]
[378339093,1754832639392,-500.0,0.0002027,2]
[378339094,1754832639401,-500.0,0.0002027,2]
[378339096,1754832639411,-500.0,0.0002027,2]
[378339097,1754832639420,-460.0,0.0002027,2]
[378339098,1754832639429,-652.66,0.0002027,2]
[378339099,1754832639438,-460.0,0.0002027,2]
[378339100,1754832639447,-460.0,0.0002027,2]
[378339101,1754832639457,-460.0,0.0002027,2]
[378339102,1754832639465,-460.0,0.00020271,2]
[378339103,1754832639475,-460.0,0.00020271,2]
[378339105,1754832639484,-460.0,0.00020271,2]
[378339106,1754832639494,-465.97244818,0.00020271,2]
[378339107,1754832639503,-460.0,0.00020271,2]
[378339108,1754832639512,-460.0,0.00020271,2]
[378339109,1754832639522,-460.0,0.00020271,2]
[378339110,1754832639531,-460.0,0.00020271,2]
[378339111,1754832639540,-460.0,0.00020271,2]
[378339112,1754832639550,-460.0,0.00020271,2]
[378339113,1754832639559,-460.0,0.00020271,2]
[378339114,1754832639568,-460.0,0.00020271,2]
[378339115,1754832639578,-475.03,0.00020271,2]
[378339116,1754832639588,-466.59686249,0.00020271,2]
[378339118,1754832639598,-460.0,0.00020271,2]
[378339120,1754832639618,-460.0,0.00020271,2]
[378339121,1754832639631,-740.87,0.00020271,2]
[378339122,1754832639641,-789.24,0.00020271,2]
[378339123,1754832639651,-466.4134748,0.00020271,2]
[378339125,1754832639661,-249.41532941,0.00020271,2]
[378339126,1754832639670,-502.51,0.00020271,2]
[378339127,1754832639680,-460.0,0.00020271,2]
[378339128,1754832639690,-3027.39,0.00020271,2]
[378339129,1754832639700,-460.0,0.00020271,2]
[378339130,1754832639710,-460.0,0.00020271,2]
[378339131,1754832639719,-499.09,0.00020271,2]
[378339132,1754832639737,-482.89905406,0.00020271,2]
[378339133,1754832639747,-997.24,0.00020271,2]
[378339134,1754832639757,-467.09516015,0.00020271,2]
[378339135,1754832639767,-916.43,0.00020271,2]
[378339136,1754832639777,-988.15,0.00020271,2]
[378339137,1754832639786,-500.0,0.00020271,2]
[378339138,1754832639799,-905.07,0.00020271,2]
[378339139,1754832639809,-500.0,0.00020272,2]
[378339141,1754832639819,-500.0,0.00020273,2]
[378339143,1754832639828,-151.0,0.000203,3]
[378339144,1754832639838,-20248.38776214,0.00020437,3]
[378339145,1754832639848,-15826.08184264,0.00020445,2]
[378339146,1754832639858,-4263.83738583,0.0002053,2]
[378339147,1754832639869,-460.0,0.00020537,2]
[378339148,1754832639879,-565.87,0.00020542,2]
[378339149,1754832639888,-1216.13,0.00020542,2]
[378339150,1754832639897,-1151.49,0.00020542,2]
[378339151,1754832639907,-460.0,0.00020542,2]
[378339154,1754832639916,-460.0,0.00020543,2]
[378339155,1754832640059,-460.0,0.00020543,2]
[378339156,1754832640069,-460.0,0.00020543,2]
[378339157,1754832640079,-415.31,0.00020543,2]
[378339158,1754832640088,-460.0,0.00020543,2]
[378339159,1754832640097,-460.0,0.00020543,2]
[378339160,1754832640106,-1798.04,0.00020543,2]
[378339161,1754832640116,-460.0,0.00020543,2]
[378339162,1754832640126,-1200.02,0.00020543,2]
[378339163,1754832640135,-460.0,0.00020543,2]
[378339164,1754832640145,-460.0,0.00020543,2]
[378339165,1754832640154,-460.0,0.00020543,2]
[378339166,1754832640163,-460.0,0.00020543,2]
[378339167,1754832640172,-491.06,0.00020543,2]
[378339168,1754832640181,-460.0,0.00020543,2]
[378339169,1754832640194,-286.74108117,0.00020544,2]
[378339170,1754832640203,-460.0,0.00020544,2]
[378339171,1754832640213,-460.0,0.00020544,2]
[378339172,1754832640223,-460.0,0.00020544,2]
[378339173,1754832640232,-460.0,0.00020544,2]
[378339174,1754832640241,-460.0,0.00020544,2]
[378339175,1754832640251,-460.0,0.00020544,2]
[378339176,1754832640260,-460.0,0.00020544,2]
[378339177,1754832640270,-460.0,0.00020544,2]
[378339178,1754832640280,-460.0,0.00020544,2]
[378339179,1754832640289,-460.0,0.00020544,2]
[378339180,1754832640298,-460.0,0.00020544,2]
[378339181,1754832640308,-971.99,0.00020544,2]
[378339182,1754832640317,-460.0,0.00020544,2]
[378339183,1754832640327,-460.0,0.00020544,2]
[378339184,1754832640337,-468.66278935,0.00020544,2]
[378339185,1754832640346,-460.0,0.00020544,2]
[378339186,1754832640356,-429.42875718,0.00020544,2]
[378339187,1754832640366,-460.0,0.00020544,2]
[378339188,1754832640375,-465.48733202,0.00020544,2]
[378339189,1754832640385,-465.59172773,0.00020544,2]
[378339190,1754832640394,-460.0,0.00020544,2]
[378339191,1754832640403,-460.0,0.00020544,2]
[378339192,1754832640413,-460.0,0.00020544,2]
[378339193,1754832640423,-460.0,0.00020544,2]
[378339194,1754832640432,-463.44220067,0.00020544,2]
[378339195,1754832640442,-460.0,0.00020544,2]
[378339196,1754832640451,-460.0,0.00020544,2]
[378339197,1754832640461,-460.0,0.00020544,2]
[378339198,1754832640470,-482.57,0.00020544,2]
[378339199,1754832640480,-460.0,0.00020544,2]
[378339200,1754832640489,-460.0,0.00020544,2]
[378339201,1754832640499,-460.0,0.00020544,2]
[378339202,1754832640509,-460.0,0.00020544,2]
[378339203,1754832640518,-500.0,0.00020544,2]
[378339204,1754832640527,-185.12869021,0.00020544,2]
[378339205,1754832640537,-652.66,0.00020544,2]
[378339206,1754832640547,-460.0,0.00020544,2]
[378339207,1754832640557,-460.0,0.00020544,2]
[378339208,1754832640567,-200.0,0.00020545,10]
[378339209,1754832640576,-200.0,0.00020545,10]
[378339210,1754832640586,-200.0,0.00020545,10]
[378339211,1754832640596,-200.0,0.00020545,10]
[378339212,1754832640605,-200.0,0.00020545,10]
[378339213,1754832640615,-200.0,0.00020545,10]
[378339214,1754832640627,-460.0,0.00020545,2]
[378339215,1754832640636,-460.0,0.00020545,2]
[378339216,1754832640646,-460.0,0.00020545,2]
[378339217,1754832640660,-460.0,0.00020545,2]
[378339218,1754832640670,-460.0,0.00020545,2]
[378339219,1754832640680,-475.03,0.00020545,2]
[378339220,1754832640690,-740.87,0.00020545,2]
[378339221,1754832640699,-789.24,0.00020545,2]
[378339222,1754832640709,-460.0,0.00020545,2]
[378339223,1754832640719,-3027.39,0.00020545,2]
[378339224,1754832640728,-460.0,0.00020545,2]
[378339225,1754832640737,-499.09,0.00020545,2]
[378339226,1754832640747,-997.24,0.00020545,2]
[378339227,1754832640757,-916.43,0.00020545,2]
[378339228,1754832640767,-988.15,0.00020545,2]
[378339229,1754832640776,-905.07,0.00020545,2]
[378339230,1754832640788,-151.0,0.000207,3]
[378339231,1754832640799,-460.0,0.00020811,2]
[378339232,1754832640809,-565.87,0.00020816,2]
[378339233,1754832640818,-1216.13,0.00020816,2]
[378339234,1754832640828,-1151.49,0.00020816,2]
[378339235,1754832640838,-460.0,0.00020816,2]
[378339236,1754832640848,-460.0,0.00020817,2]
[378339237,1754832640857,-460.0,0.00020817,2]
[378339238,1754832640868,-460.0,0.00020817,2]
[378339239,1754832640878,-460.0,0.00020817,2]
[378339240,1754832640887,-460.0,0.00020817,2]
[378339241,1754832640896,-1798.04,0.00020817,2]
[378339242,1754832640906,-460.0,0.00020817,2]
[378339243,1754832640915,-1200.02,0.00020817,2]
[378339244,1754832640925,-460.0,0.00020817,2]
[378339245,1754832640934,-460.0,0.00020817,2]
[378339246,1754832640943,-460.0,0.00020817,2]
[378339247,1754832640953,-491.06,0.00020817,2]
[378339248,1754832640962,-460.0,0.00020817,2]
[378339249,1754832640972,-167.2,0.00020818,2]
[378339250,1754832640981,-460.0,0.00020818,2]
[378339251,1754832640991,-460.0,0.00020818,2]
[378339252,1754832641000,-460.0,0.00020818,2]
[378339253,1754832641009,-460.0,0.00020818,2]
[378339254,1754832641020,-460.0,0.00020818,2]
[378339255,1754832641029,-439.84944362,0.00020818,2]
[378339256,1754832641038,-971.99,0.00020818,2]
[378339257,1754832641048,-460.0,0.00020818,2]
[378339258,1754832641057,-460.0,0.00020818,2]
[378339259,1754832641067,-460.0,0.00020818,2]
[378339260,1754832641077,-460.0,0.00020818,2]
[378339261,1754832641086,-460.0,0.00020818,2]
[378339262,1754832641096,-460.0,0.00020818,2]
[378339263,1754832641106,-460.0,0.00020818,2]
[378339264,1754832641115,-460.0,0.00020818,2]
[378339265,1754832641125,-460.0,0.00020818,2]
[378339266,1754832641135,-460.0,0.00020818,2]
[378339267,1754832641144,-652.66,0.00020818,2]
[378339268,1754832641153,-477.17239461,0.00020818,2]
[378339269,1754832641162,-460.0,0.00020818,2]
[378339270,1754832641171,-460.0,0.00020819,2]
[378339271,1754832641181,-460.0,0.00020819,2]
[378339272,1754832641190,-460.0,0.00020819,2]
[378339273,1754832641199,-460.0,0.00020819,2]
[378339274,1754832641209,-475.03,0.00020819,2]
[378339275,1754832641218,-740.87,0.00020819,2]
[378339276,1754832641227,-789.24,0.00020819,2]
[378339277,1754832641236,-460.0,0.00020819,2]
[378339278,1754832641246,-3027.39,0.00020819,2]
[378339279,1754832641255,-499.09,0.00020819,2]
[378339280,1754832641265,-997.24,0.00020819,2]
[378339281,1754832641275,-916.43,0.00020819,2]
[378339282,1754832641284,-988.15,0.00020819,2]
[378339283,1754832641294,-905.07,0.00020819,2]
[378339284,1754832641303,-1000.0,0.00020821,2]
[378339285,1754832641312,-200.0,0.00020994,15]
[378339286,1754832641323,-300.0,0.00020994,15]
[378339287,1754832641333,-499.999999,0.00021,2]
[378339288,1754832641343,-1075.7349313,0.00021,2]
[378339289,1754832641352,-460.0,0.00021085,2]
[378339290,1754832641362,-214.55,0.00021087,2]
[378339291,1754832641373,-565.87,0.0002109,2]
[378339292,1754832641383,-1216.13,0.0002109,2]
[378339293,1754832641392,-1151.49,0.0002109,2]
[378339294,1754832641402,-460.0,0.0002109,2]
[378339295,1754832641412,-460.0,0.00021091,2]
[378339296,1754832641421,-460.0,0.00021091,2]
[378339297,1754832641430,-460.0,0.00021091,2]
[378339298,1754832641440,-460.0,0.00021091,2]
[378339299,1754832641450,-1798.04,0.00021091,2]
[378339300,1754832641459,-460.0,0.00021091,2]
[378339301,1754832641469,-1200.02,0.00021091,2]
[378339302,1754832641478,-460.0,0.00021091,2]
[378339303,1754832641487,-460.0,0.00021091,2]
[378339304,1754832641497,-460.0,0.00021091,2]
[378339305,1754832641506,-491.06,0.00021091,2]
[378339306,1754832641516,-460.0,0.00021092,2]
[378339307,1754832641525,-226.85672312,0.00021092,2]
[378339308,1754832641535,-460.0,0.00021092,2]
[378339309,1754832641544,-460.0,0.00021092,2]
[378339310,1754832641554,-971.99,0.00021092,2]
[378339311,1754832641564,-460.0,0.00021092,2]
[378339312,1754832641574,-460.0,0.00021092,2]
[378339313,1754832641583,-460.0,0.00021092,2]
[378339314,1754832641593,-460.0,0.00021092,2]
[378339315,1754832641602,-460.0,0.00021092,2]
[378339316,1754832641611,-652.66,0.00021092,2]
[378339317,1754832641622,-460.0,0.00021092,2]
[378339318,1754832641631,-460.0,0.00021093,2]
[378339319,1754832641641,-460.0,0.00021093,2]
[378339320,1754832641650,-475.03,0.00021093,2]
[378339321,1754832641659,-740.87,0.00021093,2]
[378339322,1754832641670,-789.24,0.00021093,2]
[378339323,1754832641680,-460.0,0.00021093,2]
[378339324,1754832641690,-3027.39,0.00021093,2]
[378339325,1754832641699,-499.09,0.00021093,2]
[378339326,1754832641710,-997.24,0.00021093,2]
[378339327,1754832641719,-916.43,0.00021093,2]
[378339328,1754832641730,-988.15,0.00021093,2]
[378339329,1754832641740,-905.07,0.00021093,2]
[378339330,1754832641750,-408.56761699,0.0002119,2]
[378339331,1754832641761,-151.0,0.000212,4]
[378339332,1754832641771,-1473.61176075,0.00021302,2]
[378339333,1754832641781,-460.0,0.00021359,2]
[378339334,1754832641794,-565.87,0.00021364,2]
[378339335,1754832641804,-1216.13,0.00021364,2]
[378339336,1754832641813,-1151.49,0.00021364,2]
[378339337,1754832641823,-460.0,0.00021364,2]
[378339338,1754832641833,-460.0,0.00021365,2]
[378339339,1754832641843,-460.0,0.00021365,2]
[378339340,1754832641852,-460.0,0.00021365,2]
[378339341,1754832641862,-1798.04,0.00021365,2]
[378339342,1754832641873,-460.0,0.00021365,2]
[378339343,1754832641883,-1200.02,0.00021365,2]
[378339344,1754832641892,-460.0,0.00021365,2]
[378339345,1754832641902,-460.0,0.00021365,2]
[378339346,1754832641912,-460.0,0.00021365,2]
[378339347,1754832641922,-491.06,0.00021365,2]
[378339348,1754832641931,-460.0,0.00021366,2]
[378339349,1754832641941,-460.0,0.00021366,2]
[378339350,1754832641950,-460.0,0.00021366,2]
[378339351,1754832641960,-971.99,0.00021366,2]
[378339352,1754832641969,-460.0,0.00021366,2]
[378339353,1754832641979,-460.0,0.00021366,2]
[378339354,1754832641987,-318.78,0.00021366,2]
[378339355,1754832641997,-652.66,0.00021366,2]
[378339356,1754832642006,-460.0,0.00021366,2]
[378339357,1754832642015,-460.0,0.00021367,2]
[378339358,1754832642025,-460.0,0.00021367,2]
[378339359,1754832642034,-475.03,0.00021367,2]
[378339360,1754832642044,-740.87,0.00021367,2]
[378339361,1754832642054,-789.24,0.00021367,2]
[378339362,1754832642063,-460.0,0.00021367,2]
[378339363,1754832642073,-3027.39,0.00021367,2]
[378339364,1754832642082,-499.09,0.00021367,2]
[378339365,1754832642091,-997.24,0.00021367,2]
[378339366,1754832642100,-916.43,0.00021367,2]
[378339367,1754832642110,-988.15,0.00021367,2]
[378339368,1754832642215,-905.07,0.00021367,2]
[378339369,1754832642226,-200.31615429,0.00021368,2]
[378339370,1754832642235,-277.53471745,0.00021384,2]
[378339371,1754832642245,-343.14357024,0.00021633,2]
[378339372,1754832642255,-565.87,0.00021638,2]
[378339373,1754832642265,-1216.13,0.00021638,2]
[378339374,1754832642274,-1151.49,0.00021638,2]
[378339375,1754832642283,-460.0,0.00021638,2]
[378339376,1754832642293,-460.0,0.00021639,2]
[378339377,1754832642303,-460.0,0.00021639,2]
[378339378,1754832642313,-460.0,0.00021639,2]
[378339379,1754832642323,-1798.04,0.00021639,2]
[378339380,1754832642332,-460.0,0.00021639,2]
[378339381,1754832642341,-1200.02,0.00021639,2]
[378339382,1754832642351,-460.0,0.00021639,2]
[378339383,1754832642360,-460.0,0.00021639,2]
[378339384,1754832642370,-496.13,0.00021639,2]
[378339385,1754832642380,-491.06,0.00021639,2]
[378339386,1754832642390,-460.0,0.0002164,2]
[378339387,1754832642400,-460.0,0.0002164,2]
[378339388,1754832642410,-460.0,0.0002164,2]
[378339389,1754832642420,-971.99,0.0002164,2]
[378339390,1754832642430,-460.0,0.0002164,2]
[378339391,1754832642439,-460.0,0.0002164,2]
[378339392,1754832642449,-652.66,0.0002164,2]
[378339393,1754832642459,-460.0,0.0002164,2]
[378339394,1754832642468,-460.0,0.00021641,2]
[378339396,1754832642478,-460.0,0.00021641,2]
[378339397,1754832642488,-475.03,0.00021641,2]
[378339398,1754832642497,-740.87,0.00021641,2]
[378339399,1754832642507,-789.24,0.00021641,2]
[378339400,1754832642516,-460.0,0.00021641,2]
[378339401,1754832642525,-3027.39,0.00021641,2]
[378339402,1754832642535,-499.09,0.00021641,2]
[378339404,1754832642544,-997.24,0.00021641,2]
[378339406,1754832642555,-916.43,0.00021641,2]
[378339408,1754832642564,-988.15,0.00021641,2]
[378339410,1754832642574,-905.07,0.00021641,2]
[378339412,1754832642583,-151.0,0.00021642,2]
[378339414,1754832642592,-151.0,0.00021642,2]
[378339416,1754832642602,-151.0,0.00021642,2]
[378339418,1754832642611,-151.0,0.00021642,2]
[378339420,1754832642621,-151.0,0.00021642,2]
[378339422,1754832642631,-151.0,0.00021642,2]
[378339424,1754832642640,-500.0,0.00021642,2]
[378339426,1754832642650,-151.0,0.00021642,2]
[378339428,1754832642659,-151.0,0.00021642,2]
[378339430,1754832642669,-151.0,0.00021642,2]
[378339432,1754832642678,-151.0,0.00021642,2]
[378339434,1754832642687,-151.0,0.00021642,2]
[378339436,1754832642696,-151.0,0.00021642,2]
[378339438,1754832642706,-151.0,0.00021642,2]
[378339440,1754832642715,-151.0,0.00021642,2]
[378339442,1754832642724,-151.0,0.00021642,2]
[378339444,1754832642734,-151.0,0.00021642,2]
[378339446,1754832642744,-151.0,0.00021645,2]
[378339448,1754832642753,-151.0,0.00021645,2]
[378339450,1754832642763,-151.0,0.00021645,2]
[378339452,1754832642771,-151.0,0.00021645,2]
[378339453,1754832642781,-151.0,0.00021645,2]
[378339454,1754832642793,-500.0,0.00021645,2]
[378339455,1754832642803,-151.0,0.00021645,2]
[378339456,1754832642812,-263.85481817,0.00021645,2]
[378339457,1754832642821,-500.0,0.00021645,2]
[378339458,1754832642831,-151.0,0.00021645,2]
[378339460,1754832642840,-151.0,0.00021645,2]
[378339462,1754832642849,-500.0,0.00021645,2]
[378339464,1754832642859,-500.0,0.00021645,2]
[378339465,1754832642869,-151.0,0.00021645,2]
[378339467,1754832642879,-151.0,0.00021645,2]
[378339469,1754832642888,-500.0,0.00021645,2]
[378339471,1754832642897,-151.0,0.00021645,2]
[378339473,1754832642907,-500.0,0.00021645,2]
[378339475,1754832642916,-151.0,0.00021645,2]
[378339477,1754832642925,-500.0,0.00021645,2]
[378339479,1754832642935,-18502.69577858,0.00021645,2]
[378339481,1754832642944,-151.0,0.00021645,2]
[378339484,1754832642954,-500.0,0.00021645,2]
[378339486,1754832642963,-500.0,0.00021645,2]
[378339488,1754832642973,-500.0,0.00021645,2]